{"text_format":"1","workbook":"xlsx","n_sheets":14,"sheets":["Home","Gestione MateriePrime","ortaggi","proteine","scatolame","condimenti","latticini","farine","tabella elenco","tabella Inventario","Calcolo impasto","DataBase distinte","Aggiungi Distinte","Remuneration Report"],"not_rendered":{"charts":0,"images":3,"macros":1,"external_links":0,"defined_names":11,"comments":0,"pivot_tables":0},"unopened":[],"bounds":{"document_bytes":16777216,"sheet_cells":100000,"rows_first":2000,"rows_last":500,"rows_between":2000,"halvings":0,"cell_chars":16384,"cell_head_chars":4096},"cells_cut":0,"cells_raw":0,"read":"whole","date_system":"1900"}

{"sheet":"Home","index":0,"n_rows":17,"n_cols":4,"rows_kept":17,"cut":false,"hidden":false,"merged":[]}
[]
[]
[null,null,null,"Home"]
[]
[]
[]
[null,null,1]
[]
[]
[]
[]
[null,null,2]
[]
[]
[]
[]
[null,null,3]

{"sheet":"Gestione MateriePrime","index":1,"n_rows":16,"n_cols":3,"rows_kept":16,"cut":false,"hidden":false,"merged":[[3,2,3,4],[5,2,5,4]]}
[]
[]
[]
[null,null,"Gestione Materie Prime"]
[]
[null,null,"Carica i prodotti per categoria"]
[]
[]
[]
[]
[]
[]
[]
[]
[]
[null,null,"Gestione Inventario"]

{"sheet":"ortaggi","index":2,"n_rows":27,"n_cols":17,"rows_kept":27,"cut":false,"hidden":false,"merged":[[2,3,2,7],[3,3,3,7],[3,10,3,11]]}
[null,null,null,"Ortaggi"]
[]
[null,null,null,"Prima di archiviare i dati effettua un Test di Resa sul tuo prodotto completando i dati richiesti nelle celle "]
[null,null,null,"Test di Resa",null,null,null,null,null,null,"Archivia dati"]
[]
[null,null,null,"Articolo",null,null,null,null,null,null,"Categoria","ortaggi"]
[null,null,null,"Peso totale in KG",null,"Prezzo totale pagato",null,null,null,null,"Nome Prodotto",{"$f":"+E6","v":0}]
[null,null,null,null,null,null,null,null,null,null,"Prezzo Reale",{"$f":"E13","v":{"$error":"#DIV/0!"}}]
[null,null,null,"Scarto in KG",null,null,null,null,null,null,"Percenturale di Scarto",{"$f":"+E14","v":{"$error":"#DIV/0!"}}]
[null,null,null,null,null,null,null,null,null,null,null,null,null,null,null,null,2]
[null,null,null,null,{"$f":"$E$7-$E$9","v":0},null,null,{"$f":"$H$8/$E$7","v":{"$error":"#DIV/0!"}}]
[]
[null,null,null,"Costo reale per KG",{"$f":"$H$8/$E$11","v":{"$error":"#DIV/0!"}}]
[null,null,null,"Totale perdita %",{"$f":"$E$9/$E$7","v":{"$error":"#DIV/0!"}}]
[null,null,null,"Totale perdita €",{"$f":"$E$13-$H$11","v":{"$error":"#DIV/0!"}}]
[]
[]
[]
[]
[]
[]
[]
[]
[]
[]
[null,null,null,null,{"$f":"E7-$E$9","v":0}]
[null,null,null,null,{"$f":"E7-$E$9","v":0}]

{"sheet":"proteine","index":3,"n_rows":27,"n_cols":17,"rows_kept":27,"cut":false,"hidden":false,"merged":[[2,3,2,7],[3,3,3,7],[3,10,3,11]]}
[null,null,null,"Proteine"]
[]
[null,null,null,"Prima di archiviare i dati effettua un Test di Resa sul tuo prodotto completando i dati richiesti nelle celle "]
[null,null,null,"Test di Resa",null,null,null,null,null,null,"Archivia dati"]
[]
[null,null,null,"Articolo",null,null,null,null,null,null,"Categoria","proteine"]
[null,null,null,"Peso totale in KG",null,"Prezzo totale pagato",null,null,null,null,"Nome Prodotto",{"$f":"+$E$6","v":0}]
[null,null,null,null,null,null,null,null,null,null,"Prezzo Reale",{"$f":"$E$13","v":{"$error":"#DIV/0!"}}]
[null,null,null,"Scarto in KG",null,null,null,null,null,null,"Percenturale di Scarto",{"$f":"+$E$14","v":{"$error":"#DIV/0!"}}]
[null,null,null,null,null,null,null,null,null,null,null,null,null,null,null,null,2]
[null,null,null,null,{"$f":"$E$7-$E$9","v":0},null,null,{"$f":"$H$8/$E$7","v":{"$error":"#DIV/0!"}}]
[]
[null,null,null,"Costo reale per KG",{"$f":"$H$8/$E$11","v":{"$error":"#DIV/0!"}}]
[null,null,null,"Totale perdita %",{"$f":"$E$9/$E$7","v":{"$error":"#DIV/0!"}}]
[null,null,null,"Totale perdita €",{"$f":"$E$13-$H$11","v":{"$error":"#DIV/0!"}}]
[]
[]
[]
[]
[]
[]
[]
[]
[]
[]
[null,null,null,null,{"$f":"E7-$E$9","v":0}]
[null,null,null,null,{"$f":"E7-$E$9","v":0}]

{"sheet":"scatolame","index":4,"n_rows":27,"n_cols":17,"rows_kept":27,"cut":false,"hidden":false,"merged":[[2,3,2,7],[3,3,3,7],[3,10,3,11]]}
[null,null,null,"Scatolame"]
[]
[null,null,null,"Prima di archiviare i dati effettua un Test di Resa sul tuo prodotto completando i dati richiesti nelle celle "]
[null,null,null,"Test di Resa",null,null,null,null,null,null,"Archivia dati"]
[]
[null,null,null,"Articolo",null,null,null,null,null,null,"Categoria","scatolame"]
[null,null,null,"Peso totale in KG",null,"Prezzo totale pagato",null,null,null,null,"Nome Prodotto",{"$f":"+$E$6","v":0}]
[null,null,null,null,null,null,null,null,null,null,"Prezzo Reale",{"$f":"$E$13","v":{"$error":"#DIV/0!"}}]
[null,null,null,"Scarto in KG",null,null,null,null,null,null,"Percenturale di Scarto",{"$f":"+$E$14","v":{"$error":"#DIV/0!"}}]
[null,null,null,null,null,null,null,null,null,null,null,null,null,null,null,null,2]
[null,null,null,null,{"$f":"$E$7-$E$9","v":0},null,null,{"$f":"$H$8/$E$7","v":{"$error":"#DIV/0!"}}]
[]
[null,null,null,"Costo reale per KG",{"$f":"$H$8/$E$11","v":{"$error":"#DIV/0!"}}]
[null,null,null,"Totale perdita %",{"$f":"$E$9/$E$7","v":{"$error":"#DIV/0!"}}]
[null,null,null,"Totale perdita €",{"$f":"$E$13-$H$11","v":{"$error":"#DIV/0!"}}]
[]
[]
[]
[]
[]
[]
[]
[]
[]
[]
[null,null,null,null,{"$f":"E7-$E$9","v":0}]
[null,null,null,null,{"$f":"E7-$E$9","v":0}]

{"sheet":"condimenti","index":5,"n_rows":27,"n_cols":17,"rows_kept":27,"cut":false,"hidden":false,"merged":[[2,3,2,7],[3,3,3,7],[3,10,3,11]]}
[null,null,null,"Condimenti"]
[]
[null,null,null,"Prima di archiviare i dati effettua un Test di Resa sul tuo prodotto completando i dati richiesti nelle celle "]
[null,null,null,"Test di Resa",null,null,null,null,null,null,"Archivia dati"]
[]
[null,null,null,"Articolo",null,null,null,null,null,null,"Categoria","condimenti"]
[null,null,null,"Peso totale in KG",null,"Prezzo totale pagato",null,null,null,null,"Nome Prodotto",{"$f":"+$E$6","v":0}]
[null,null,null,null,null,null,null,null,null,null,"Prezzo Reale",{"$f":"$E$13","v":{"$error":"#DIV/0!"}}]
[null,null,null,"Scarto in KG",null,null,null,null,null,null,"Percenturale di Scarto",{"$f":"+$E$14","v":{"$error":"#DIV/0!"}}]
[null,null,null,null,null,null,null,null,null,null,null,null,null,null,null,null,2]
[null,null,null,null,{"$f":"$E$7-$E$9","v":0},null,null,{"$f":"$H$8/$E$7","v":{"$error":"#DIV/0!"}}]
[]
[null,null,null,"Costo reale per KG",{"$f":"$H$8/$E$11","v":{"$error":"#DIV/0!"}}]
[null,null,null,"Totale perdita %",{"$f":"$E$9/$E$7","v":{"$error":"#DIV/0!"}}]
[null,null,null,"Totale perdita €",{"$f":"$E$13-$H$11","v":{"$error":"#DIV/0!"}}]
[]
[]
[]
[]
[]
[]
[]
[]
[]
[]
[null,null,null,null,{"$f":"E7-$E$9","v":0}]
[null,null,null,null,{"$f":"E7-$E$9","v":0}]

{"sheet":"latticini","index":6,"n_rows":27,"n_cols":17,"rows_kept":27,"cut":false,"hidden":false,"merged":[[3,10,3,11],[3,3,3,7],[2,3,2,7]]}
[null,null,null,"Latticini"]
[]
[null,null,null,"Prima di archiviare i dati effettua un Test di Resa sul tuo prodotto completando i dati richiesti nelle celle "]
[null,null,null,"Test di Resa",null,null,null,null,null,null,"Archivia dati"]
[]
[null,null,null,"Articolo",null,null,null,null,null,null,"Categoria","latticini"]
[null,null,null,"Peso totale in KG",null,"Prezzo totale pagato",null,null,null,null,"Nome Prodotto",{"$f":"+$E$6","v":0}]
[null,null,null,null,null,null,null,null,null,null,"Prezzo Reale",{"$f":"$E$13","v":{"$error":"#DIV/0!"}}]
[null,null,null,"Scarto in KG",null,null,null,null,null,null,"Percenturale di Scarto",{"$f":"+$E$14","v":{"$error":"#DIV/0!"}}]
[null,null,null,null,null,null,null,null,null,null,null,null,null,null,null,null,2]
[null,null,null,null,{"$f":"$E$7-$E$9","v":0},null,null,{"$f":"$H$8/$E$7","v":{"$error":"#DIV/0!"}}]
[]
[null,null,null,"Costo reale per KG",{"$f":"$H$8/$E$11","v":{"$error":"#DIV/0!"}}]
[null,null,null,"Totale perdita %",{"$f":"$E$9/$E$7","v":{"$error":"#DIV/0!"}}]
[null,null,null,"Totale perdita €",{"$f":"$E$13-$H$11","v":{"$error":"#DIV/0!"}}]
[]
[]
[]
[]
[]
[]
[]
[]
[]
[]
[null,null,null,null,{"$f":"E7-$E$9","v":0}]
[null,null,null,null,{"$f":"E7-$E$9","v":0}]

{"sheet":"farine","index":7,"n_rows":27,"n_cols":17,"rows_kept":27,"cut":false,"hidden":false,"merged":[[2,3,2,7],[3,3,3,7],[3,10,3,11]]}
[null,null,null,"Farine"]
[]
[null,null,null,"Prima di archiviare i dati effettua un Test di Resa sul tuo prodotto completando i dati richiesti nelle celle "]
[null,null,null,"Test di Resa",null,null,null,null,null,null,"Archivia dati"]
[]
[null,null,null,"Articolo",null,null,null,null,null,null,"Categoria","farine"]
[null,null,null,"Peso totale in KG",null,"Prezzo totale pagato",null,null,null,null,"Nome Prodotto",{"$f":"+$E$6","v":0}]
[null,null,null,null,null,null,null,null,null,null,"Prezzo Reale",{"$f":"$E$13","v":{"$error":"#DIV/0!"}}]
[null,null,null,"Scarto in KG",null,null,null,null,null,null,"Percenturale di Scarto",{"$f":"+$E$14","v":{"$error":"#DIV/0!"}}]
[null,null,null,null,null,null,null,null,null,null,null,null,null,null,null,null,2]
[null,null,null,null,{"$f":"$E$7-$E$9","v":0},null,null,{"$f":"$H$8/$E$7","v":{"$error":"#DIV/0!"}}]
[]
[null,null,null,"Costo reale per KG",{"$f":"$H$8/$E$11","v":{"$error":"#DIV/0!"}}]
[null,null,null,"Totale perdita %",{"$f":"$E$9/$E$7","v":{"$error":"#DIV/0!"}}]
[null,null,null,"Totale perdita €",{"$f":"$E$13-$H$11","v":{"$error":"#DIV/0!"}}]
[]
[]
[]
[]
[]
[]
[]
[]
[]
[]
[null,null,null,null,{"$f":"E7-$E$9","v":0}]
[null,null,null,null,{"$f":"E7-$E$9","v":0}]

{"sheet":"tabella elenco","index":8,"n_rows":10,"n_cols":9,"rows_kept":10,"cut":false,"hidden":false,"merged":[]}
["categoria","latticini","ortaggi","proteine","scatolame","condimenti","farine"]
["latticini","#","#","#","#","#","#"]
["ortaggi"]
["proteine"]
["scatolame"]
["condimenti"]
["farine"]
[]
[]
[null,null,null,null,null,null,null,null,"Da questa sezione puoi modificare l'elenco delle materie prime"]

{"sheet":"tabella Inventario","index":9,"n_rows":19,"n_cols":8,"rows_kept":19,"cut":false,"hidden":false,"merged":[[0,0,0,3]]}
["Inventario materie prime"]
["categoria","nome prodotto","prezzo in €","scarto in %"]
["#","#","#","#"]
[]
[]
[]
[]
[]
[]
[]
[]
[]
[]
[]
[]
[null,null,null,null,null,null,"impasto","prezzo"]
[null,null,null,null,null,null,"classico",{"$f":"'Calcolo impasto'!G11","v":0}]
[null,null,null,null,null,null,"speciale1",{"$f":"'Calcolo impasto'!G22","v":0}]
[null,null,null,null,null,null,"speciale2",{"$f":"'Calcolo impasto'!G34","v":{"$error":"#DIV/0!"}}]

{"sheet":"Calcolo impasto","index":10,"n_rows":35,"n_cols":10,"rows_kept":35,"cut":false,"hidden":false,"merged":[[24,2,24,6],[2,2,2,6],[3,2,3,6],[13,2,13,6]]}
[null,null,"Gestione Impasti"]
[]
[]
[null,null,"impasto Classico/ 1 farina"]
[null,null,null,null,null,"Peso Palline in Kg"]
[null,null,null,{"$f":"IF(C6>0,VLOOKUP(C6,'tabella Inventario'!$B$3:$C$100,2,FALSE),\"0\")","v":"0"},null,{"$f":"E6/G12","v":{"$error":"#DIV/0!"}},{"$f":"IFERROR(D6*F6,\"0\")","v":"0"}]
[null,null,"Acqua",null,null,{"$f":"E7/G12","v":{"$error":"#DIV/0!"}},{"$f":"IFERROR(D7*F7,\"0\")","v":"0"}]
[null,null,"Sale",{"$f":"IF(C8>0,VLOOKUP(C8,'tabella Inventario'!$B$3:$C$100,2,FALSE),\"0\")","v":{"$error":"#N/A"}},null,{"$f":"E8/G12","v":{"$error":"#DIV/0!"}},"0"]
[null,null,"Olio evo",{"$f":"IF(C9>0,VLOOKUP(C9,'tabella Inventario'!$B$3:$C$100,2,FALSE),\"0\")","v":{"$error":"#N/A"}},null,{"$f":"E9/G12","v":{"$error":"#DIV/0!"}},"0"]
[null,null,"lievito ",{"$f":"IF(C10>0,VLOOKUP(C10,'tabella Inventario'!$B$3:$C$100,2,FALSE),\"0\")","v":{"$error":"#N/A"}},null,{"$f":"E10/G12","v":{"$error":"#DIV/0!"}},"0"]
[null,null,null,null,null,null,{"$f":"SUM(G6:G10)","v":0}]
[null,null,"totale impasto",null,{"$f":"SUM(E6:E10)","v":0},"Numero palline",{"$f":"E12/G5","v":{"$error":"#DIV/0!"}}]
[]
[null,null,"impasto Special/ 2 farine"]
[null,null,null,null,null,"Peso Palline in Kg"]
[null,null,null,{"$f":"IF(C16>0,VLOOKUP(C16,'tabella Inventario'!$B$3:$C$100,2,FALSE),\"0\")","v":"0"},null,{"$f":"E16/G23","v":{"$error":"#DIV/0!"}},{"$f":"IFERROR(D16*F16,\"0\")","v":"0"}]
[null,null,null,{"$f":"IF(C17>0,VLOOKUP(C17,'tabella Inventario'!$B$3:$C$100,2,FALSE),\"0\")","v":"0"},null,{"$f":"E17/G23","v":{"$error":"#DIV/0!"}},{"$f":"IFERROR(D17*F17,\"0\")","v":"0"},null,"impasto","prezzo"]
[null,null,"Acqua",null,null,{"$f":"E18/G23","v":{"$error":"#DIV/0!"}},"0",null,"classico",{"$f":"'Calcolo impasto'!I12","v":0}]
[null,null,"Sale",{"$f":"IF(C19>0,VLOOKUP(C19,'tabella Inventario'!$B$3:$C$100,2,FALSE),\"0\")","v":{"$error":"#N/A"}},null,{"$f":"E19/G23","v":{"$error":"#DIV/0!"}},"0",null,"speciale1",{"$f":"'Calcolo impasto'!I23","v":0}]
[null,null,"Olio evo",{"$f":"IF(C20>0,VLOOKUP(C20,'tabella Inventario'!$B$3:$C$100,2,FALSE),\"0\")","v":{"$error":"#N/A"}},null,{"$f":"E20/G23","v":{"$error":"#DIV/0!"}},"0",null,"speciale2",{"$f":"'Calcolo impasto'!I35","v":0}]
[null,null,"lievito ",{"$f":"IF(C21>0,VLOOKUP(C21,'tabella Inventario'!$B$3:$C$100,2,FALSE),\"0\")","v":{"$error":"#N/A"}},null,{"$f":"E21/G23","v":{"$error":"#DIV/0!"}},"0"]
[null,null,null,null,null,null,{"$f":"SUM(G16:G21)","v":0}]
[null,null,"totale impasto",null,{"$f":"SUM(E16:E21)","v":0},"Numero palline",{"$f":"E23/G15","v":{"$error":"#DIV/0!"}}]
[]
[null,null,"impasto Special/ 3 farine"]
[null,null,null,null,null,"Peso Palline in Kg",0]
[null,null,null,{"$f":"IF(C27>0,VLOOKUP(C27,'tabella Inventario'!$B$3:$C$100,2,FALSE),\"0\")","v":"0"},null,{"$f":"E27/G35","v":{"$error":"#DIV/0!"}},{"$f":"D27*F27","v":{"$error":"#DIV/0!"}}]
[null,null,null,{"$f":"IF(C28>0,VLOOKUP(C28,'tabella Inventario'!$B$3:$C$100,2,FALSE),\"0\")","v":"0"},null,{"$f":"E28/G35","v":{"$error":"#DIV/0!"}},{"$f":"D28*F28","v":{"$error":"#DIV/0!"}}]
[null,null,null,{"$f":"IF(C29>0,VLOOKUP(C29,'tabella Inventario'!$B$3:$C$100,2,FALSE),\"0\")","v":"0"},null,{"$f":"E29/G35","v":{"$error":"#DIV/0!"}},{"$f":"D29*F29","v":{"$error":"#DIV/0!"}}]
[null,null,"Acqua",null,null,{"$f":"E30/G35","v":{"$error":"#DIV/0!"}},{"$f":"D30*F30","v":{"$error":"#DIV/0!"}}]
[null,null,"Sale",{"$f":"IF(C31>0,VLOOKUP(C31,'tabella Inventario'!$B$3:$C$100,2,FALSE),\"0\")","v":{"$error":"#N/A"}},null,{"$f":"E31/G35","v":{"$error":"#DIV/0!"}},{"$error":"#N/A"}]
[null,null,"Olio evo",{"$f":"IF(C32>0,VLOOKUP(C32,'tabella Inventario'!$B$3:$C$100,2,FALSE),\"0\")","v":{"$error":"#N/A"}},null,{"$f":"E32/G35","v":{"$error":"#DIV/0!"}},{"$error":"#N/A"}]
[null,null,"lievito ",{"$f":"IF(C33>0,VLOOKUP(C33,'tabella Inventario'!$B$3:$C$100,2,FALSE),\"0\")","v":{"$error":"#N/A"}},null,{"$f":"E33/G35","v":{"$error":"#DIV/0!"}},{"$error":"#N/A"}]
[null,null,null,null,null,null,{"$f":"SUM(G27:G33)","v":{"$error":"#DIV/0!"}}]
[null,null,"totale impasto",null,{"$f":"SUM(E27:E33)","v":0},"Numero palline",{"$f":"E35/G26","v":{"$error":"#DIV/0!"}}]

{"sheet":"DataBase distinte","index":11,"n_rows":2,"n_cols":2,"rows_kept":2,"cut":false,"hidden":false,"merged":[[0,1,0,2]]}
["#","DataBase Distinte"]
["#"]

{"sheet":"Aggiungi Distinte","index":12,"n_rows":22,"n_cols":11,"rows_kept":22,"cut":false,"hidden":false,"merged":[[0,2,0,3],[19,5,21,7],[1,2,2,8],[3,2,3,8],[5,8,21,8],[16,7,17,7]]}
[null,1,"Aggiungi Distinte "]
[null,2,"Compila gli spazi bianchi con gli ingredienti che occorrono per realizzare la pizza, il relativo peso in Kg e il prezzo di vendita. Inoltre scrivi nelle note il livello di difficolta della realizzazione della pizza (scala da 1 a 5, dove 1 è facilissimo; e 5 difficilissimo)."]
[null,3]
[null,4]
[null,5,"Ingredienti",null,"costo al Kg (€)","peso /kg/Pz","costo","incidenza singola","numero porzioni"]
[null,6,null,null,{"$f":"IF(D6>0,VLOOKUP(D6,'tabella Inventario'!$B$3:$C$100,2,FALSE),\"\")","v":""},null,{"$f":"PRODUCT(E6,F6)","v":0},{"$f":"G6/E20","v":{"$error":"#DIV/0!"}},"1 Pizza da 33",27,{"$f":"100/J6","v":3.7037037037037037}]
[null,7,null,null,{"$f":"IF(D7>0,VLOOKUP(D7,'tabella Inventario'!$B$3:$C$100,2,FALSE),\"\")","v":""},null,{"$f":"PRODUCT(E7,F7)","v":0},{"$f":"G7/E20","v":{"$error":"#DIV/0!"}}]
[null,8,null,null,{"$f":"IF(D8>0,VLOOKUP(D8,'tabella Inventario'!$B$3:$C$100,2,FALSE),\"\")","v":""},null,0,{"$f":"G8/E20","v":{"$error":"#DIV/0!"}}]
[null,9,null,null,{"$f":"IF(D9>0,VLOOKUP(D9,'tabella Inventario'!$B$3:$C$100,2,FALSE),\"\")","v":""},null,0,{"$f":"G9/E20","v":{"$error":"#DIV/0!"}}]
[null,10,null,null,{"$f":"IF(D10>0,VLOOKUP(D10,'tabella Inventario'!$B$3:$C$100,2,FALSE),\"\")","v":""},null,0,{"$f":"G10/E20","v":{"$error":"#DIV/0!"}}]
[null,11,null,null,{"$f":"IF(D11>0,VLOOKUP(D11,'tabella Inventario'!$B$3:$C$100,2,FALSE),\"\")","v":""},null,0,{"$f":"G11/E20","v":{"$error":"#DIV/0!"}}]
[null,12,null,null,{"$f":"IF(D12>0,VLOOKUP(D12,'tabella Inventario'!$B$3:$C$100,2,FALSE),\"\")","v":""},null,0,{"$f":"G12/E20","v":{"$error":"#DIV/0!"}}]
[null,13,null,null,{"$f":"IF(D13>0,VLOOKUP(D13,'tabella Inventario'!$B$3:$C$100,2,FALSE),\"\")","v":""},null,0,{"$f":"G13/E20","v":{"$error":"#DIV/0!"}}]
[null,14,null,null,{"$f":"IF(D14>0,VLOOKUP(D14,'tabella Inventario'!$B$3:$C$100,2,FALSE),\"\")","v":""},null,0,{"$f":"G14/E20","v":{"$error":"#DIV/0!"}}]
[null,15,null,null,{"$f":"IF(D15>0,VLOOKUP(D15,'tabella Inventario'!$B$3:$C$100,2,FALSE),\"\")","v":""},null,0,{"$f":"G15/E20","v":{"$error":"#DIV/0!"}}]
[null,16,null,null,{"$f":"IF(D16>0,VLOOKUP(D16,'tabella Inventario'!$B$3:$C$100,2,FALSE),\"\")","v":""},null,0,{"$f":"G16/E20","v":{"$error":"#DIV/0!"}}]
[null,17,"Impasto",null,"costo pallina","numero palline","costo",{"$f":"G18/E20","v":{"$error":"#DIV/0!"}}]
[null,18,"classico",null,{"$f":" IF(C18>0,VLOOKUP(C18, tabimpasto[],2,FALSE),\"\")","v":0},null,{"$f":"PRODUCT(E18,F18)","v":0}]
[null,19,"peso pizza",null,{"$f":"SUM(F6:F17)","v":0},"note:"]
[null,20,"food cost ",null,{"$f":"SUM(G6:G18)","v":0}]
[null,21,"prezzo ideale di vendita",null,{"$f":"PRODUCT(E20*K6)","v":0}]
[null,22,"Prezzo di Vendita"]

{"sheet":"Remuneration Report","index":13,"n_rows":27,"n_cols":11,"rows_kept":27,"cut":false,"hidden":false,"merged":[[24,10,25,10],[26,10,27,10],[22,10,23,10],[3,2,3,3],[12,10,13,10],[14,10,15,10],[16,10,17,10],[18,10,19,10],[22,9,23,9],[24,9,25,9],[26,9,27,9],[12,9,13,9],[14,9,15,9],[16,9,17,9],[18,9,19,9]]}
[]
[]
[]
[null,null,"Remuneration Report",null,null,null,null,null,null,"Calcola Margine","Pulisci scheda"]
[null,"Colonna1","Prodotti","food cost","fatturato lordo","Fatturato netto","Incidenza %","Margine di Guadagno"]
[null,null,"A 1Prova 1",0,0,{"$f":"IF(E6/(1+10%),E6/(1+10%),\"\")","v":""},{"$f":"IFERROR(D6/F6,\"\")","v":""},{"$f":"IFERROR(F6-D6,\"\")","v":""}]
[]
[]
[]
[]
[]
[]
[null,null,null,null,null,null,null,null,null,"Conteggio ",{"$f":"COUNT(D:D)-1","v":0}]
[]
[null,null,null,null,null,null,null,null,null,"Massimo Margine ",{"$f":"MAX(H:H)","v":0}]
[]
[null,null,null,null,null,null,null,null,null,"Minimo Margine",{"$f":"MIN(H:H)","v":0}]
[]
[null,null,null,null,null,null,null,null,null,"Media Margine",{"$f":"AVERAGE(H:H)","v":{"$error":"#DIV/0!"}}]
[]
[]
[]
[null,null,null,null,null,null,null,null,null,"Fatturato Medio senza Iva",{"$f":"AVERAGE(F:F)","v":{"$error":"#DIV/0!"}}]
[]
[null,null,null,null,null,null,null,null,null,"Deviazione Standard",{"$f":"STDEV(H:H)","v":{"$error":"#DIV/0!"}}]
[]
[null,null,null,null,null,null,null,null,null,"Incidenza Media",{"$f":"AVERAGE(G:G)","v":{"$error":"#DIV/0!"}}]